[Event "84th ESP-ch 2019"]
[Site "Marbella"]
[Date "2019.11.16"]
[Round "1.14"]
[White "Ruiz Bellon, Manuel"]
[Black "Asis Gargatagli, Hipolito"]
[Result "0-1"]
[ECO "A04"]
[WhiteElo "1994"]
[BlackElo "2497"]
[Annotator "ChessBase"]
[PlyCount "66"]
[EventDate "2019.11.16"]
[EventType "swiss"]
[EventCountry "ESP"]
[SourceTitle "playchess.com"]
[Source "ChessBase"]
[SourceQuality "1"]
[TimeControl "5400+30"]

1. Nf3 {[%emt 0:00:00]} g6 {[%emt 0:00:00]} 2. g3 {[%emt 0:00:00]} Bg7 {[%emt 0:00:00]} 3. Bg2 {[%emt 0:00:04]} Nf6 {[%emt 0:00:19]} 4. d4 {[%emt 0:00:20]} O-O {[%emt 0:01:20]} 5. O-O {[%emt 0:00:12]} d6 {[%emt 0:01:38]} 6. a4 {[%emt 0:00:29]} a5 {[%emt 0:03:43]} 7. Re1 {[%emt 0:02:23]} d5 {[%emt 0:09:41]} 8. c4 {[%emt 0:06:01]} Nc6 {[%emt 0:11:23]} 9. cxd5 {[%emt 0:08:42]} Nxd5 {[%emt 0:01:34]} 10. e4 {[%emt 0:01:32]} Nb6 {[%emt 0:01:54]} 11. d5 {[%emt 0:05:04]} Nb4 {[%emt 0:02:05]} 12. Nc3 {[%emt 0:01:51]} c6 {[%emt 0:10:10]} 13. Be3 {[%emt 0:27:43]} Nc4 {[%emt 0:13:53]} 14. Qb3 {[%emt 0:04:16]} Nxe3 {[%emt 0:01:08]} 15. Rxe3 {[%emt 0:03:38]} cxd5 {[%emt 0:14:37]} 16. Nxd5 {[%emt 0:01:31]} Nxd5 {[%emt 0:00:34]} 17. exd5 {[%emt 0:00:20]} Ra6 {[%emt 0:01:09]} 18. Rae1 {[%emt 0:04:40]} Rb6 {[%emt 0:02:35]} 19. Qc4 {[%emt 0:03:33]} e6 {[%emt 0:02:37]} 20. Ne5 {[%emt 0:03:24]} Rxb2 {[%emt 0:01:07]} 21. d6 {[%emt 0:03:49]} Qxd6 {[%emt 0:02:03]} 22. Nxf7 {[%emt 0:04:50]} Kxf7 {[%emt 0:06:43]} 23. Rxe6 {[%emt 0:05:11]} Bxe6 {[%emt 0:00:13]} 24. Rxe6 {[%emt 0:00:14]} Qxe6 {[%emt 0:00:05]} 25. Bd5 {[%emt 0:00:09]} Re8 {[%emt 0:01:42]} 26. Qc7+ {[%emt 0:00:29]} Kf8 {[%emt 0:02:39]} 27. Bxe6 {[%emt 0:00:55]} Rxe6 {[%emt 0:00:05]} 28. Qc8+ {[%emt 0:02:31]} Re8 {[%emt 0:00:21]} 29. Qc5+ {[%emt 0:00:41]} Kg8 {[%emt 0:00:13]} 30. Qxa5 {[%emt 0:00:10]} Rf8 {[%emt 0:00:56]} 31. Qd5+ {[%emt 0:03:22]} Kh8 {[%emt 0:00:06]} 32. Kg2 {[%emt 0:01:31]} Rfxf2+ {[%emt 0:01:24]} 33. Kh3 {[%emt 0:00:08]} h5 {[%emt 0:00:53]} 0-1

[Event "84th ESP-ch 2019"]
[Site "Marbella"]
[Date "2019.11.16"]
[Round "1.15"]
[White "Larino Nieto, David"]
[Black "Roman Lopez, Jesus"]
[Result "1-0"]
[ECO "A01"]
[WhiteElo "2473"]
[BlackElo "1993"]
[Annotator "ChessBase"]
[PlyCount "71"]
[EventDate "2019.11.16"]
[EventType "swiss"]
[EventCountry "ESP"]
[SourceTitle "playchess.com"]
[Source "ChessBase"]
[SourceQuality "1"]
[TimeControl "5400+30"]

1. b3 {[%emt 0:17:40]} Nc6 {[%emt 0:00:37]} 2. d4 {[%emt 0:02:39]} d5 3. Nf3 {[%emt 0:00:22]} Bf5 {[%emt 0:01:20]} 4. Bb2 {[%emt 0:00:30]} Nf6 {[%emt 0:00:11]} 5. e3 {[%emt 0:00:10]} e6 {[%emt 0:00:19]} 6. Ne5 {[%emt 0:01:32]} Nxe5 {[%emt 0:05:13]} 7. dxe5 {[%emt 0:00:41]} Ne4 {[%emt 0:05:45]} 8. Bd3 {[%emt 0:05:50]} Qg5 {[%emt 0:21:18]} 9. Kf1 {[%emt 0:12:26]} Bc5 {[%emt 0:12:39]} 10. Qe2 Bb6 11. b4 {[%emt 0:05:31]} Rd8 {[%emt 0:08:21]} 12. a4 {[%emt 0:02:35]} a5 {[%emt 0:05:39]} 13. bxa5 {[%emt 0:00:10]} Bxa5 {[%emt 0:03:01]} 14. f3 {[%emt 0:01:13]} O-O {[%emt 0:00:31]} 15. g4 {[%emt 0:01:58]} Qh4 {[%emt 0:10:06]} 16. Kg2 {[%emt 0:03:25]} Bxg4 {[%emt 0:14:45]} 17. fxg4 {[%emt 0:02:52]} f5 {[%emt 0:00:22]} 18. exf6 {[%emt 0:27:07]} Nxf6 {[%emt 0:03:09]} 19. h3 {[%emt 0:00:41]} Ne4 {[%emt 0:01:42]} 20. Bxe4 {[%emt 0:00:06]} dxe4 {[%emt 0:00:02]} 21. Nc3 {[%emt 0:00:16]} Rf3 {[%emt 0:01:36]} 22. Nxe4 {[%emt 0:00:22]} Rd2 {[%emt 0:03:24]} 23. Kxf3 {[%emt 0:00:12]} Rxe2 {[%emt 0:00:12]} 24. Kxe2 {[%emt 0:00:02]} Qe7 {[%emt 0:00:49]} 25. Ba3 {[%emt 0:00:19]} Qd7 {[%emt 0:00:52]} 26. Rhf1 {[%emt 0:02:55]} h6 {[%emt 0:00:29]} 27. Rf8+ {[%emt 0:00:06]} Kh7 {[%emt 0:00:01]} 28. g5 {[%emt 0:02:28]} Qxa4 {[%emt 0:00:36]} 29. g6+ {[%emt 0:01:16]} Kxg6 {[%emt 0:00:53]} 30. Rg1+ {[%emt 0:00:03]} Kh7 {[%emt 0:00:23]} 31. Rf7 {[%emt 0:02:02]} Qc4+ {[%emt 0:00:43]} 32. Kf3 {[%emt 0:00:32]} Bc3 {[%emt 0:00:12]} 33. Nxc3 {[%emt 0:00:25]} Qxc3 34. Rfxg7+ {[%emt 0:01:40]} Qxg7 {[%emt 0:00:57]} 35. Rxg7+ {[%emt 0:00:02]} Kxg7 {[%emt 0:00:12]} 36. Ke4 1-0

[Event "84th ESP-ch 2019"]
[Site "Marbella"]
[Date "2019.11.16"]
[Round "1.16"]
[White "Perez Guerra, Alberto"]
[Black "Alsina Leal, Daniel"]
[Result "0-1"]
[ECO "A20"]
[WhiteElo "1988"]
[BlackElo "2467"]
[Annotator "ChessBase"]
[PlyCount "59"]
[EventDate "2019.11.16"]
[EventType "swiss"]
[EventCountry "ESP"]
[SourceTitle "playchess.com"]
[Source "ChessBase"]
[SourceQuality "1"]
[TimeControl "5400+30"]

1. c4 {[%emt 0:00:00]} e5 {[%emt 0:00:00]} 2. g3 {[%emt 0:00:00]} c6 {[%emt 0:00:08]} 3. Nf3 {[%emt 0:00:18]} e4 {[%emt 0:00:09]} 4. Nd4 {[%emt 0:00:44]} d5 {[%emt 0:00:09]} 5. cxd5 {[%emt 0:04:15]} Qxd5 {[%emt 0:00:10]} 6. e3 {[%emt 0:02:50]} Nf6 {[%emt 0:06:23]} 7. Nc3 {[%emt 0:01:29]} Qe5 {[%emt 0:00:45]} 8. Bg2 {[%emt 0:03:02]} Bc5 {[%emt 0:01:41]} 9. Nb3 {[%emt 0:17:18]} Na6 {[%emt 0:07:03]} 10. a3 {[%emt 0:11:04]} Bb6 {[%emt 0:09:30]} 11. d4 {[%emt 0:14:14]} exd3 {[%emt 0:01:54]} 12. Qxd3 {[%emt 0:00:22]} O-O {[%emt 0:05:59]} 13. O-O {[%emt 0:01:22]} Re8 {[%emt 0:02:44]} 14. e4 {[%emt 0:02:42]} Be6 {[%emt 0:02:03]} 15. Bf4 {[%emt 0:00:22]} Qh5 {[%emt 0:00:16]} 16. Qc2 {[%emt 0:05:18]} Bh3 {[%emt 0:03:47]} 17. Bxh3 {[%emt 0:11:45]} Qxh3 {[%emt 0:00:05]} 18. Kh1 {[%emt 0:00:16]} Nh5 {[%emt 0:16:10]} 19. Qe2 {[%emt 0:10:26]} Nxf4 {[%emt 0:09:10]} 20. gxf4 {[%emt 0:00:02]} f5 {[%emt 0:00:32]} 21. e5 {[%emt 0:04:36]} Nc7 {[%emt 0:02:24]} 22. Qc4+ {[%emt 0:01:01]} Ne6 {[%emt 0:01:20]} 23. f3 {[%emt 0:03:13]} Rad8 {[%emt 0:02:54]} 24. Ne2 {[%emt 0:02:51]} Kh8 {[%emt 0:03:20]} 25. Qc2 {[%emt 0:01:10]} Be3 {[%emt 0:02:09]} 26. Qc4 {[%emt 0:01:16]} h6 {[%emt 0:02:05]} 27. a4 {[%emt 0:01:01]} Rd5 {[%emt 0:04:35]} 28. Qc3 {[%emt 0:00:23]} Nxf4 {[%emt 0:05:13]} 29. Nxf4 {[%emt 0:00:33]} Bxf4 {[%emt 0:00:05]} 30. Qc2 {[%emt 0:00:34]} 0-1

[Event "84th ESP-ch 2019"]
[Site "Marbella"]
[Date "2019.11.16"]
[Round "1.17"]
[White "Diaz Camallonga, Carles"]
[Black "Abreu Suarez, Isauro"]
[Result "1-0"]
[ECO "B03"]
[WhiteElo "2465"]
[BlackElo "1974"]
[Annotator "ChessBase"]
[PlyCount "65"]
[EventDate "2019.11.16"]
[EventType "swiss"]
[EventCountry "ESP"]
[SourceTitle "playchess.com"]
[Source "ChessBase"]
[SourceQuality "1"]
[TimeControl "5400+30"]

1. e4 {[%emt 0:00:00]} Nf6 {[%emt 0:00:00]} 2. e5 {[%emt 0:00:00]} Nd5 {[%emt 0:00:01]} 3. d4 {[%emt 0:00:00]} d6 {[%emt 0:00:10]} 4. c4 {[%emt 0:00:00]} Nb6 {[%emt 0:00:06]} 5. exd6 {[%emt 0:00:00]} cxd6 {[%emt 0:00:12]} 6. Nc3 {[%emt 0:00:00]} g6 {[%emt 0:00:13]} 7. Be3 {[%emt 0:00:06]} Bg7 {[%emt 0:00:14]} 8. Rc1 {[%emt 0:00:08]} O-O {[%emt 0:00:26]} 9. b3 {[%emt 0:00:05]} Bf5 {[%emt 0:01:01]} 10. g4 {[%emt 0:01:18]} Bc8 {[%emt 0:04:06]} 11. h4 {[%emt 0:00:05]} e5 {[%emt 0:09:00]} 12. d5 {[%emt 0:01:13]} f5 {[%emt 0:02:38]} 13. gxf5 {[%emt 0:03:17]} Bxf5 {[%emt 0:01:54]} 14. h5 {[%emt 0:03:42]} N8d7 {[%emt 0:03:45]} 15. hxg6 {[%emt 0:02:53]} hxg6 {[%emt 0:04:03]} 16. Bh3 {[%emt 0:04:41]} Qf6 {[%emt 0:13:18]} 17. Bxf5 {[%emt 0:07:52]} Qxf5 {[%emt 0:00:16]} 18. Nge2 {[%emt 0:09:12]} Nc5 {[%emt 0:25:43]} 19. Ng3 {[%emt 0:03:37]} Nd3+ {[%emt 0:02:22]} 20. Kd2 {[%emt 0:00:10]} Nxf2 {[%emt 0:00:54]} 21. Nxf5 {[%emt 0:01:00]} Nxd1 {[%emt 0:00:07]} 22. Nxd6 {[%emt 0:00:03]} Nxe3 {[%emt 0:02:56]} 23. Kxe3 {[%emt 0:00:03]} Rf4 {[%emt 0:01:36]} 24. Rcg1 {[%emt 0:03:51]} Raf8 {[%emt 0:02:29]} 25. Rh3 {[%emt 0:02:44]} Nd7 {[%emt 0:05:53]} 26. Rxg6 {[%emt 0:03:41]} Nf6 {[%emt 0:05:14]} 27. Nce4 {[%emt 0:15:26]} Nxe4 {[%emt 0:11:08]} 28. Nxe4 {[%emt 0:00:07]} Rf1 {[%emt 0:02:08]} 29. Rhg3 {[%emt 0:00:39]} Re1+ {[%emt 0:01:20]} 30. Kd3 {[%emt 0:00:09]} Rf7 {[%emt 0:00:44]} 31. Nd6 {[%emt 0:01:00]} e4+ {[%emt 0:00:50]} 32. Kd2 {[%emt 0:00:05]} Ref1 {[%emt 0:00:39]} 33. Nxf7 {[%emt 0:00:07]} 1-0

[Event "84th ESP-ch 2019"]
[Site "Marbella"]
[Date "2019.11.16"]
[Round "1.18"]
[White "Viciano Barrachina, Aitor"]
[Black "Gines Esteo, Pedro Antonio"]
[Result "0-1"]
[ECO "B11"]
[WhiteElo "1954"]
[BlackElo "2463"]
[Annotator "ChessBase"]
[PlyCount "132"]
[EventDate "2019.11.16"]
[EventType "swiss"]
[EventCountry "ESP"]
[SourceTitle "playchess.com"]
[Source "ChessBase"]
[SourceQuality "1"]
[TimeControl "5400+30"]

1. e4 {[%emt 0:00:00]} c6 {[%emt 0:01:46]} 2. Nc3 {[%emt 0:00:24]} d5 {[%emt 0:00:05]} 3. Nf3 {[%emt 0:00:19]} Bg4 {[%emt 0:00:07]} 4. h3 {[%emt 0:00:20]} Bxf3 {[%emt 0:00:08]} 5. Qxf3 {[%emt 0:00:11]} e6 {[%emt 0:00:03]} 6. Be2 {[%emt 0:01:19]} Nf6 {[%emt 0:00:35]} 7. O-O {[%emt 0:01:14]} dxe4 {[%emt 0:03:52]} 8. Nxe4 {[%emt 0:00:38]} Nbd7 {[%emt 0:00:04]} 9. d4 {[%emt 0:04:03]} Be7 {[%emt 0:00:13]} 10. c3 {[%emt 0:15:57]} O-O {[%emt 0:00:06]} 11. Nxf6+ {[%emt 0:05:47]} Nxf6 {[%emt 0:01:22]} 12. Bf4 {[%emt 0:04:29]} a5 {[%emt 0:00:18]} 13. Rfd1 {[%emt 0:01:50]} a4 {[%emt 0:00:10]} 14. a3 {[%emt 0:01:42]} Qa5 {[%emt 0:04:05]} 15. Bd3 {[%emt 0:02:30]} Rfd8 {[%emt 0:01:51]} 16. Be5 {[%emt 0:11:08]} Nd7 {[%emt 0:03:04]} 17. Bf4 {[%emt 0:02:05]} Qd5 {[%emt 0:07:05]} 18. Be4 {[%emt 0:03:16]} Qb3 {[%emt 0:00:17]} 19. Rd2 {[%emt 0:01:28]} Nf6 {[%emt 0:03:42]} 20. Bc2 {[%emt 0:01:01]} Qc4 {[%emt 0:01:20]} 21. Rad1 {[%emt 0:03:44]} Nd5 {[%emt 0:05:06]} 22. Qe4 {[%emt 0:04:55]} g6 {[%emt 0:02:38]} 23. Be5 {[%emt 0:06:35]} Rd7 {[%emt 0:05:52]} 24. h4 {[%emt 0:03:03]} Rad8 {[%emt 0:20:16]} 25. h5 {[%emt 0:00:53]} Nf6 {[%emt 0:01:11]} 26. Bxf6 {[%emt 0:01:43]} Bxf6 {[%emt 0:00:02]} 27. hxg6 {[%emt 0:02:56]} hxg6 {[%emt 0:00:13]} 28. Qd3 {[%emt 0:02:43]} Qxd3 {[%emt 0:01:02]} 29. Rxd3 {[%emt 0:00:42]} Ra8 {[%emt 0:01:48]} 30. f3 {[%emt 0:02:45]} Ra6 {[%emt 0:01:08]} 31. Kf2 {[%emt 0:01:21]} Rd5 {[%emt 0:00:34]} 32. b4 {[%emt 0:07:06]} axb3 {[%emt 0:00:14]} 33. Bxb3 {[%emt 0:00:03]} Rb5 {[%emt 0:01:36]} 34. c4 {[%emt 0:00:05]} Bxd4+ {[%emt 0:01:07]} 35. Kf1 {[%emt 0:02:07]} Rbb6 {[%emt 0:00:49]} 36. a4 {[%emt 0:00:38]} c5 {[%emt 0:00:12]} 37. Rc1 {[%emt 0:03:58]} Rb4 {[%emt 0:00:51]} 38. Ke2 {[%emt 0:00:26]} Rab6 {[%emt 0:00:07]} 39. Bd1 {[%emt 0:00:10]} e5 {[%emt 0:01:52]} 40. g4 {[%emt 0:01:12]} f5 {[%emt 0:00:57]} 41. gxf5 {[%emt 0:01:15]} gxf5 {[%emt 0:00:02]} 42. Kd2 {[%emt 0:01:09]} Rh6 {[%emt 0:01:18]} 43. Rb3 {[%emt 0:00:47]} Rh2+ {[%emt 0:00:07]} 44. Kd3 {[%emt 0:00:07]} e4+ {[%emt 0:00:11]} 45. fxe4 {[%emt 0:00:54]} Rh3+ {[%emt 0:00:05]} 46. Ke2 {[%emt 0:00:14]} Rbxb3 {[%emt 0:00:06]} 47. Bxb3 {[%emt 0:00:06]} Re3+ {[%emt 0:00:30]} 48. Kd1 {[%emt 0:00:26]} Rxb3 {[%emt 0:00:07]} 49. exf5 {[%emt 0:00:16]} Kf7 {[%emt 0:00:08]} 50. Ke2 {[%emt 0:00:37]} Kf6 {[%emt 0:00:44]} 51. Rf1 {[%emt 0:00:27]} Rc3 {[%emt 0:00:20]} 52. Rb1 {[%emt 0:00:03]} Rxc4 {[%emt 0:00:19]} 53. Rxb7 {[%emt 0:00:11]} Rxa4 {[%emt 0:00:14]} 54. Kd3 {[%emt 0:00:28]} Kxf5 {[%emt 0:00:11]} 55. Re7 {[%emt 0:00:25]} Be5 {[%emt 0:01:04]} 56. Rf7+ {[%emt 0:00:20]} Ke6 {[%emt 0:00:06]} 57. Rh7 {[%emt 0:00:24]} Kd5 {[%emt 0:00:18]} 58. Rd7+ {[%emt 0:00:20]} Bd6 {[%emt 0:00:02]} 59. Rd8 {[%emt 0:00:17]} c4+ {[%emt 0:00:21]} 60. Kc3 {[%emt 0:00:15]} Ra3+ {[%emt 0:00:08]} 61. Kc2 {[%emt 0:00:41]} Kc5 {[%emt 0:00:26]} 62. Kb2 {[%emt 0:00:10]} Rh3 {[%emt 0:00:13]} 63. Rc8+ {[%emt 0:00:20]} Kb4 {[%emt 0:00:12]} 64. Rd8 {[%emt 0:00:32]} Rh2+ {[%emt 0:00:09]} 65. Kc1 {[%emt 0:00:14]} Kc3 {[%emt 0:00:46]} 66. Rxd6 {[%emt 0:00:12]} Rh1+ {[%emt 0:00:06]} 0-1

[Event "84th ESP-ch 2019"]
[Site "Marbella"]
[Date "2019.11.16"]
[Round "1.19"]
[White "Tejedor Fuente, Enrique"]
[Black "Diaz Mino, Daniel"]
[Result "1-0"]
[ECO "C42"]
[WhiteElo "2457"]
[BlackElo "1953"]
[Annotator "ChessBase"]
[PlyCount "51"]
[EventDate "2019.11.16"]
[EventType "swiss"]
[EventCountry "ESP"]
[SourceTitle "playchess.com"]
[Source "ChessBase"]
[SourceQuality "1"]
[TimeControl "5400+30"]

1. e4 {[%emt 0:00:00]} e5 {[%emt 0:00:00]} 2. Nf3 {[%emt 0:00:00]} Nf6 {[%emt 0:00:02]} 3. Nxe5 {[%emt 0:00:22]} d6 {[%emt 0:00:22]} 4. Nc4 {[%emt 0:00:15]} Nxe4 {[%emt 0:00:40]} 5. Qe2 {[%emt 0:02:10]} Qe7 {[%emt 0:02:18]} 6. Ne3 {[%emt 0:00:44]} Nf6 {[%emt 0:03:45]} 7. b3 {[%emt 0:02:06]} Be6 {[%emt 0:05:48]} 8. Bb2 {[%emt 0:02:08]} Nc6 {[%emt 0:05:45]} 9. f4 {[%emt 0:23:43]} O-O-O {[%emt 0:04:35]} 10. f5 {[%emt 0:36:01]} Bd7 {[%emt 0:01:00]} 11. Na3 {[%emt 0:03:14]} Rg8 {[%emt 0:08:34]} 12. g3 {[%emt 0:02:28]} g6 {[%emt 0:01:53]} 13. O-O-O {[%emt 0:03:00]} Bg7 {[%emt 0:01:28]} 14. Bg2 {[%emt 0:00:44]} d5 {[%emt 0:10:58]} 15. Qf1 {[%emt 0:10:04]} d4 {[%emt 0:29:22]} 16. Nec4 {[%emt 0:00:02]} Qc5 {[%emt 0:01:07]} 17. fxg6 {[%emt 0:02:49]} fxg6 {[%emt 0:00:42]} 18. Nb5 {[%emt 0:06:47]} Nh5 {[%emt 0:03:33]} 19. Ba3 {[%emt 0:00:38]} Qf5 {[%emt 0:03:08]} 20. Nbd6+ {[%emt 0:00:18]} cxd6 {[%emt 0:00:33]} 21. Nxd6+ {[%emt 0:00:02]} Kb8 {[%emt 0:00:32]} 22. Nxf5 {[%emt 0:00:05]} Bxf5 {[%emt 0:00:29]} 23. Bxc6 {[%emt 0:00:44]} bxc6 {[%emt 0:00:04]} 24. Qf3 {[%emt 0:00:34]} Nf6 {[%emt 0:04:52]} 25. Qxc6 {[%emt 0:00:10]} Rc8 {[%emt 0:00:27]} 26. Bd6+ {[%emt 0:00:04]} 1-0

[Event "84th ESP-ch 2019"]
[Site "Marbella"]
[Date "2019.11.16"]
[Round "1.20"]
[White "Munoz Suarez, Luis Alberto"]
[Black "Huerga Leache, Mikel"]
[Result "0-1"]
[ECO "C02"]
[WhiteElo "1944"]
[BlackElo "2456"]
[Annotator "ChessBase"]
[PlyCount "86"]
[EventDate "2019.11.16"]
[EventType "swiss"]
[EventCountry "ESP"]
[SourceTitle "playchess.com"]
[Source "ChessBase"]
[SourceQuality "1"]
[TimeControl "5400+30"]

1. e4 {[%emt 0:00:00]} e6 {[%emt 0:00:00]} 2. d4 {[%emt 0:00:00]} d5 {[%emt 0:00:00]} 3. e5 {[%emt 0:00:15]} c5 {[%emt 0:00:00]} 4. c3 {[%emt 0:00:07]} Qb6 {[%emt 0:00:51]} 5. Nf3 {[%emt 0:00:14]} Nc6 {[%emt 0:00:06]} 6. Be2 {[%emt 0:01:37]} cxd4 {[%emt 0:00:55]} 7. cxd4 {[%emt 0:00:15]} Nge7 {[%emt 0:00:06]} 8. Nc3 {[%emt 0:12:01]} Nf5 {[%emt 0:00:37]} 9. Na4 {[%emt 0:00:25]} Qa5+ {[%emt 0:01:38]} 10. Kf1 {[%emt 0:04:52]} Bd7 {[%emt 0:01:06]} 11. b3 {[%emt 0:06:50]} b5 {[%emt 0:04:05]} 12. Nc5 {[%emt 0:16:13]} Bxc5 {[%emt 0:08:13]} 13. dxc5 {[%emt 0:03:51]} b4 {[%emt 0:00:07]} 14. g4 {[%emt 0:03:47]} Nfe7 {[%emt 0:00:07]} 15. Be3 {[%emt 0:06:05]} h5 {[%emt 0:02:14]} 16. gxh5 {[%emt 0:02:46]} Rxh5 {[%emt 0:02:57]} 17. Ng5 {[%emt 0:03:56]} Rh4 {[%emt 0:00:25]} 18. Nf3 {[%emt 0:02:16]} Rh5 {[%emt 0:01:01]} 19. Ng5 {[%emt 0:01:11]} Rh8 {[%emt 0:00:07]} 20. f4 {[%emt 0:01:13]} Nf5 {[%emt 0:02:15]} 21. Bf2 {[%emt 0:00:22]} Nce7 {[%emt 0:06:15]} 22. Qd2 {[%emt 0:02:26]} Bb5 {[%emt 0:01:17]} 23. a4 {[%emt 0:00:29]} Bxe2+ {[%emt 0:01:29]} 24. Qxe2 {[%emt 0:01:39]} Qc7 {[%emt 0:05:34]} 25. Rc1 {[%emt 0:04:28]} Qc6 {[%emt 0:03:23]} 26. Qb5 {[%emt 0:05:20]} a6 {[%emt 0:01:37]} 27. Qxc6+ {[%emt 0:07:13]} Nxc6 {[%emt 0:00:02]} 28. Kg2 {[%emt 0:02:23]} Ke7 {[%emt 0:01:15]} 29. Nf3 {[%emt 0:00:28]} Rh6 {[%emt 0:00:38]} 30. Rhd1 {[%emt 0:01:37]} Rg6+ {[%emt 0:00:40]} 31. Kf1 {[%emt 0:00:27]} Rg4 {[%emt 0:00:27]} 32. h3 {[%emt 0:05:42]} Rxf4 {[%emt 0:00:33]} 33. Kg2 {[%emt 0:00:25]} Rh8 {[%emt 0:00:34]} 34. Rd3 {[%emt 0:01:05]} Re4 {[%emt 0:00:56]} 35. Re1 {[%emt 0:00:30]} Rh6 {[%emt 0:00:24]} 36. Rdd1 {[%emt 0:01:43]} Rf4 {[%emt 0:01:44]} 37. Nh2 {[%emt 0:02:57]} Rg6+ {[%emt 0:01:54]} 38. Ng4 {[%emt 0:00:28]} Nh6 {[%emt 0:00:27]} 39. Bg3 {[%emt 0:00:56]} Rf5 {[%emt 0:00:43]} 40. Nxh6 {[%emt 0:00:23]} gxh6 {[%emt 0:00:45]} 41. Rd3 {[%emt 0:00:16]} Nxe5 {[%emt 0:02:03]} 42. Rde3 {[%emt 0:01:06]} Nc6 {[%emt 0:00:21]} 43. Kh2 {[%emt 0:00:16]} Kd7 {[%emt 0:00:55]} 0-1

[Event "84th ESP-ch 2019"]
[Site "Marbella"]
[Date "2019.11.16"]
[Round "1.21"]
[White "Ladron De Guevara Pinto, Paolo"]
[Black "Juan Mas, Santiago"]
[Result "1-0"]
[ECO "B00"]
[WhiteElo "2442"]
[BlackElo "1930"]
[Annotator "NA"]
[PlyCount "41"]
[EventDate "2019.11.16"]
[EventType "swiss"]
[EventCountry "ESP"]
[SourceTitle "playchess.com"]
[Source "ChessBase"]
[SourceQuality "1"]
[TimeControl "5400+30"]

1. e4 {[%emt 0:00:00]} Nc6 {[%emt 0:00:00]} 2. d4 {[%emt 0:00:00]} d5 {[%emt 0:00:00]} 3. e5 {[%emt 0:00:20]} f6 {[%emt 0:00:00]} 4. f4 {[%emt 0:01:15]} Nh6 {[%emt 0:01:22]} 5. c3 {[%emt 0:01:23]} g6 {[%emt 0:02:52]} 6. Nf3 {[%emt 0:02:58]} Bg4 {[%emt 0:02:31]} 7. Bd3 {[%emt 0:13:19]} Bg7 {[%emt 0:02:40]} 8. O-O {[%emt 0:00:18]} O-O {[%emt 0:01:09]} 9. a4 {[%emt 0:11:07]} Qd7 {[%emt 0:07:31]} 10. a5 {[%emt 0:00:53]} a6 {[%emt 0:05:42]} 11. Nbd2 {[%emt 0:00:58]} fxe5 {[%emt 0:03:21]} 12. fxe5 {[%emt 0:01:10]} Nd8 {[%emt 0:03:50]} 13. Nb3 {[%emt 0:24:50]} Ne6 {[%emt 0:01:06]} 14. Be2 {[%emt 0:00:04]} c5 {[%emt 0:14:40]} 15. Nxc5 {[%emt 0:10:09]} Nxc5 {[%emt 0:00:29]} 16. dxc5 {[%emt 0:00:04]} Rad8 {[%emt 0:08:08]} 17. Re1 {[%emt 0:06:12]} Nf5 {[%emt 0:06:30]} 18. Nd4 {[%emt 0:03:13]} Bxe2 {[%emt 0:09:22]} 19. Qxe2 {[%emt 0:00:37]} Nxd4 {[%emt 0:00:27]} 20. cxd4 {[%emt 0:00:05]} Qf5 {[%emt 0:01:04]} 21. Ra3 {[%emt 0:00:34]} 1-0

[Event "84th ESP-ch 2019"]
[Site "Marbella"]
[Date "2019.11.16"]
[Round "1.22"]
[White "Castellanos Bogalo, Antonio"]
[Black "Valmana Canto, Jaime"]
[Result "0-1"]
[ECO "B21"]
[WhiteElo "1915"]
[BlackElo "2416"]
[Annotator "NA"]
[PlyCount "94"]
[EventDate "2019.11.16"]
[EventType "swiss"]
[EventCountry "ESP"]
[SourceTitle "playchess.com"]
[Source "ChessBase"]
[SourceQuality "1"]
[TimeControl "5400+30"]

1. e4 {[%emt 0:00:00]} c5 {[%emt 0:02:07]} 2. d4 {[%emt 0:00:00]} cxd4 {[%emt 0:00:03]} 3. c3 {[%emt 0:00:00]} Nf6 {[%emt 0:00:05]} 4. e5 {[%emt 0:00:05]} Nd5 {[%emt 0:00:06]} 5. Nf3 {[%emt 0:00:09]} Nc6 {[%emt 0:00:03]} 6. Bc4 {[%emt 0:00:06]} e6 {[%emt 0:00:27]} 7. O-O {[%emt 0:00:35]} Nb6 {[%emt 0:04:21]} 8. Bb3 {[%emt 0:00:23]} d6 {[%emt 0:00:14]} 9. exd6 {[%emt 0:01:13]} Bxd6 {[%emt 0:12:32]} 10. cxd4 {[%emt 0:04:20]} Ne7 {[%emt 0:04:52]} 11. Bg5 {[%emt 0:05:50]} Bd7 {[%emt 0:00:37]} 12. Nc3 {[%emt 0:03:52]} Bc6 {[%emt 0:01:40]} 13. Qe2 {[%emt 0:02:45]} O-O {[%emt 0:06:28]} 14. Rfe1 {[%emt 0:03:29]} h6 {[%emt 0:09:10]} 15. d5 {[%emt 0:05:17]} hxg5 {[%emt 0:00:22]} 16. dxc6 {[%emt 0:00:16]} Nxc6 {[%emt 0:00:09]} 17. Ne4 {[%emt 0:03:53]} Be7 {[%emt 0:00:39]} 18. Rad1 {[%emt 0:06:00]} Nd5 {[%emt 0:02:26]} 19. Ng3 {[%emt 0:08:50]} Nf4 {[%emt 0:16:06]} 20. Qe3 {[%emt 0:15:25]} Qb6 {[%emt 0:03:03]} 21. Ne4 {[%emt 0:13:07]} Qxe3 {[%emt 0:03:49]} 22. fxe3 {[%emt 0:03:35]} g4 {[%emt 0:00:34]} 23. exf4 {[%emt 0:11:13]} gxf3 {[%emt 0:00:10]} 24. Rd7 {[%emt 0:03:09]} fxg2 {[%emt 0:02:33]} 25. Rxb7 {[%emt 0:01:16]} Rab8 {[%emt 0:07:37]} 26. Rc7 {[%emt 0:02:44]} Nd4 {[%emt 0:04:09]} 27. Kxg2 {[%emt 0:00:08]} Bh4 {[%emt 0:05:50]} 28. Re3 {[%emt 0:01:36]} Nf5 {[%emt 0:00:02]} 29. Rd3 {[%emt 0:00:24]} Rb4 {[%emt 0:02:39]} 30. Rc4 {[%emt 0:00:55]} Rfb8 {[%emt 0:01:53]} 31. Nd2 {[%emt 0:02:27]} Bf6 {[%emt 0:01:38]} 32. Rxb4 {[%emt 0:01:16]} Rxb4 {[%emt 0:00:07]} 33. Nc4 {[%emt 0:00:17]} Nd4 {[%emt 0:00:19]} 34. Na5 {[%emt 0:01:28]} Nxb3 {[%emt 0:01:22]} 35. axb3 {[%emt 0:00:11]} Rxf4 {[%emt 0:01:28]} 36. Rd7 {[%emt 0:00:58]} Bd4 {[%emt 0:00:42]} 37. Kg3 {[%emt 0:00:41]} g5 {[%emt 0:00:41]} 38. Nc6 {[%emt 0:00:12]} Bf2+ {[%emt 0:00:16]} 39. Kg2 {[%emt 0:00:04]} Bb6 {[%emt 0:00:05]} 40. Ne5 {[%emt 0:00:29]} Kg7 {[%emt 0:01:53]} 41. Kg3 {[%emt 0:00:54]} Rf5 {[%emt 0:01:39]} 42. Nf3 {[%emt 0:00:19]} Rb5 {[%emt 0:00:40]} 43. Rd3 {[%emt 0:00:20]} Bc7+ {[%emt 0:00:21]} 44. Kg2 {[%emt 0:00:18]} Kg6 {[%emt 0:00:11]} 45. h3 {[%emt 0:00:17]} f5 {[%emt 0:01:15]} 46. Rc3 {[%emt 0:00:17]} Bb6 {[%emt 0:00:11]} 47. Nd2 {[%emt 0:01:09]} Ba5 {[%emt 0:00:21]} 0-1